bitfinex/quotes_SOLUSD_20230113
["timestamp","ask_amount","ask_price","bid_price","bid_amount"]
[1673603227053,64.05,17.027,17.01,116.1568]
[1673603227264,10.0,17.026,17.01,116.1568]
[1673603227477,44.06,17.025,17.01,116.1568]
[1673603228427,20.0,17.024,17.003,32.14]
[1673603228623,44.06,17.023,17.003,113.7349]
[1673603228834,20.0,17.022,17.003,113.7349]
[1673603229047,44.07,17.021,17.003,113.7349]
[1673603229255,20.0,17.02,17.003,113.7349]
[1673603229466,119.1144,17.019,17.003,113.7349]
[1673603229691,20.0,17.018,17.003,113.7349]
[1673603230117,20.0,17.018,17.003,138.30867663]
[1673603230307,119.1144,17.019,17.004,42.27]
[1673603230514,44.05,17.027,17.01,15.56]
[1673603230753,44.05,17.029,17.011,32.26]
[1673603231059,44.05,17.029,17.01,15.56]
[1673603231060,20.0,17.027,17.01,15.56]
[1673603231274,20.0,17.027,17.011,117.8938]
[1673603233162,20.0,17.027,17.012,10.0]
[1673603233584,20.0,17.027,17.013,32.12]
[1673603233788,20.0,17.027,17.012,42.12]
[1673603234847,20.0,17.027,17.012,66.68585761]
[1673603235039,20.0,17.027,17.013,10.0]
[1673603237668,20.0,17.027,17.014,32.04]
[1673603238302,20.0,17.027,17.013,42.07]
[1673603238822,20.0,17.027,17.013,32.07]
[1673603239047,20.0,17.027,17.012,66.64585761]
[1673603241354,20.0,17.027,17.012,56.64585761]
[1673603241573,64.05,17.027,17.011,117.8938]
[1673603243540,64.05,17.027,17.0,62.68]
[1673603243541,64.05,17.027,17.005,32.1]
[1673603243754,69.90371,17.027,17.003,32.1]
[1673603243980,69.90371,17.027,17.002,119.0923]
[1673603243981,15.62,17.02,17.002,109.0923]
[1673603244194,64.07,17.019,17.002,109.0923]
[1673603244808,177.8543,17.019,17.002,109.0923]
[1673603245035,44.07,17.019,17.002,109.0923]
[1673603245248,5.85371,17.026,17.003,32.34]
[1673603245558,115.2269,17.028,17.004,10.0]
[1673603245778,115.2269,17.028,17.005,32.33]
[1673603245960,10.0,17.027,17.005,56.89585761]
[1673603246396,54.05,17.027,17.006,20.0]
[1673603246709,52.85371,17.026,17.003,32.34]
[1673603246930,10.0,17.024,17.002,141.4323]
[1673603247116,64.06,17.023,17.002,141.4323]
[1673603248698,64.06,17.023,17.004,10.0]
[1673603248911,20.0,17.023,17.004,10.0]
[1673603249240,44.06,17.022,17.005,24.56585761]
[1673603249436,20.0,17.021,17.005,24.56585761]
[1673603250287,44.05,17.026,17.01,15.67]
[1673603250488,159.2769,17.028,17.01,15.67]
[1673603250699,20.0,17.027,17.011,110.6718]
[1673603251319,44.05,17.026,17.011,110.6718]
[1673603254895,20.0,17.027,17.011,110.6718]
[1673603255114,20.0,17.027,17.012,42.16]
[1673603258696,20.0,17.027,17.013,10.0]
[1673603258887,20.0,17.027,17.014,32.06]
[1673603261836,20.0,17.027,17.013,32.05]
[1673603262049,64.04,17.033,17.011,142.7318]
[1673603262259,10.0,17.032,17.011,110.6718]
[1673603262478,64.04,17.031,17.011,110.6718]
[1673603262689,10.0,17.03,17.011,110.6718]
[1673603262900,64.05,17.029,17.011,110.6718]
[1673603263436,116.6318,17.028,17.011,110.6718]
[1673603263647,20.0,17.027,17.011,110.6718]
[1673603264571,64.05,17.027,17.008,32.14]
[1673603264785,10.0,17.026,17.007,515.865]
[1673603264992,44.06,17.025,17.007,515.865]
[1673603268146,44.05,17.026,17.007,515.865]
[1673603268774,10.0,17.025,17.007,515.865]
[1673603268990,61.06,17.024,17.002,32.18]
[1673603269191,81.06,17.024,17.002,142.4792]
[1673603269621,10.0,17.023,17.002,142.4792]
[1673603269928,64.06,17.022,17.002,142.4792]
[1673603270140,10.0,17.021,17.002,142.4792]
[1673603270345,20.0,17.02,17.002,142.4792]
[1673603270664,114.0221,17.019,17.002,142.4792]
[1673603270878,20.0,17.018,17.002,142.4792]
[1673603272253,20.0,17.018,17.002,32.18]
[1673603272466,20.0,17.018,17.0,15.62]
[1673603272679,20.0,17.018,17.001,32.26]
[1673603274023,20.0,17.018,17.001,150.4402]
[1673603275100,20.0,17.018,17.001,32.26]
[1673603275317,10.0,17.017,17.0,15.62]
[1673603275629,27.0,17.017,17.0,15.62]
[1673603278048,74.08,17.018,17.0,15.62]
[1673603278359,74.08,17.018,17.001,32.33]
[1673603278568,20.0,17.018,17.001,32.33]
[1673603280755,20.0,17.018,17.001,151.3065]
[1673603281390,20.0,17.018,17.002,10.0]
[1673603281699,20.0,17.018,17.003,32.3]
[1673603281912,20.0,17.018,17.004,10.0]
[1673603282124,20.0,17.018,17.005,32.3]
[1673603282443,18.4492,17.018,17.005,32.3]
[1673603284250,18.4492,17.018,17.005,56.86585761]
[1673603284991,18.4492,17.018,17.005,24.56585761]
[1673603285508,18.4492,17.018,17.003,32.24]
[1673603285932,44.06,17.023,17.003,32.24]
[1673603286144,207.40206352,17.028,17.005,10.0]
[1673603286354,207.40206352,17.028,17.007,10.0]
[1673603286559,207.40206352,17.028,17.008,141.4148]
[1673603286784,207.40206352,17.028,17.009,10.0]
[1673603286785,163.35206352,17.028,17.009,10.0]
[1673603287002,163.35206352,17.028,17.01,118.6027]
[1673603287188,20.0,17.027,17.01,118.6027]
[1673603287518,20.0,17.027,17.01,175.32855761]
[1673603287736,20.0,17.027,17.011,10.0]
[1673603288762,20.0,17.027,17.009,32.16]
[1673603289101,20.0,17.027,17.008,109.2548]
[1673603289285,44.05,17.026,17.008,109.2548]
[1673603290150,44.05,17.026,17.008,133.82065761]
[1673603290358,44.05,17.026,17.01,10.0]
[1673603290569,64.05,17.027,17.01,10.0]
[1673603291301,64.05,17.027,17.01,123.3271]
[1673603292018,64.05,17.027,17.01,113.3271]
[1673603292230,20.0,17.027,17.01,113.3271]
[1673603293939,20.0,17.027,17.01,128.8371]
[1673603294142,20.0,17.027,17.011,32.16]
[1673603294460,20.0,17.027,17.012,34.56585761]
[1673603294663,20.0,17.027,17.013,32.16]
[1673603294985,20.0,17.027,17.013,56.72585761]
[1673603295183,20.0,17.027,17.014,24.56585761]
[1673603295400,20.0,17.027,17.013,32.16]
[1673603295618,20.0,17.027,17.012,32.07]
[1673603296979,20.0,17.027,17.01,128.9971]
[1673603297287,20.0,17.027,17.01,113.3271]
[1673603297502,10.0,17.026,17.004,20.0]
[1673603299197,17.0,17.025,17.004,20.0]
[1673603299517,10.0,17.024,17.004,20.0]
[1673603300239,17.0,17.025,17.004,20.0]
[1673603300451,10.0,17.026,17.004,20.0]
[1673603300862,30.0,17.027,17.004,20.0]
[1673603301078,20.0,17.027,17.004,20.0]
[1673603301505,20.0,17.027,17.005,10.0]
[1673603302249,10.0,17.026,17.005,10.0]
[1673603303615,10.0,17.026,17.004,20.0]
[1673603304562,30.0,17.027,17.005,10.0]
[1673603305293,10.0,17.026,17.004,20.0]
[1673603308013,17.0,17.025,17.004,20.0]
[1673603308437,10.0,17.024,17.004,20.0]
[1673603311595,51.81620441,17.026,17.004,20.0]
[1673603311791,51.81620441,17.026,17.004,30.0]
[1673603312008,51.81620441,17.026,17.005,10.0]
[1673603312653,51.81620441,17.026,17.001,515.5765]
[1673603312868,51.81620441,17.026,17.002,109.6094]
[1673603312869,42.85371,17.025,17.002,109.6094]
[1673603313174,5.85371,17.024,17.002,109.6094]
[1673603313393,47.0,17.023,17.002,109.6094]
[1673603313998,15.67,17.02,17.002,109.6094]
[1673603314211,139.3075,17.019,17.002,109.6094]
[1673603321465,17.0,17.018,17.002,109.6094]
[1673603321675,20.0,17.017,17.002,109.6094]
[1673603330840,17.0,17.016,16.995,396.6]
[1673603331158,10.0,17.014,16.996,20.0]
[1673603331364,17.0,17.013,16.996,20.0]
[1673603333444,17.0,17.013,16.997,17.0]
[1673603334075,5.85371,17.014,16.997,17.0]
[1673603334285,20.0,17.017,16.997,17.0]
[1673603334624,20.0,17.017,16.998,10.0]
[1673603335763,20.0,17.017,16.999,17.0]
[1673603337670,20.0,17.017,16.997,10.0]
[1673603338408,20.0,17.017,16.998,17.0]
[1673603339145,17.0,17.016,16.996,20.0]
[1673603339580,27.0,17.016,16.996,20.0]
[1673603339978,17.0,17.016,16.996,20.0]
[1673603342430,17.0,17.016,16.997,17.0]
[1673603346526,17.0,17.016,16.996,20.0]
[1673603346832,17.0,17.016,16.994,111.2678]
[1673603346833,5.85371,17.015,16.995,20.0]
[1673603347034,17.0,17.014,16.995,20.0]
[1673603348813,17.0,17.014,16.996,17.0]
[1673603349018,17.0,17.014,16.997,20.0]
[1673603349444,17.0,17.014,16.998,17.0]
[1673603349989,105.13935325,17.016,16.998,17.0]
[1673603350597,20.0,17.017,17.0,11.78]
[1673603350936,20.0,17.018,17.002,10.0]
[1673603351562,20.0,17.018,17.001,118.4594]
[1673603351790,20.0,17.018,17.001,108.4594]
[1673603352290,17.0,17.017,17.001,108.4594]
[1673603352492,20.0,17.016,17.001,108.4594]
[1673603353118,20.0,17.017,17.001,108.4594]
[1673603353324,20.0,17.017,17.002,17.0]
[1673603357033,10.0,17.016,17.0,11.78]
[1673603357354,17.0,17.015,17.0,11.78]
[1673603357544,22.85371,17.015,17.0,11.78]
[1673603357751,10.0,17.014,16.997,20.0]
[1673603358088,17.0,17.013,16.996,20.0]
[1673603359028,17.0,17.013,16.997,17.0]
[1673603361776,5.85371,17.014,16.997,17.0]
[1673603362092,5.85371,17.014,16.996,20.0]
[1673603362300,17.0,17.013,16.996,20.0]
[1673603362717,11.73,17.01,16.995,117.2266]
[1673603363025,37.0,17.009,16.995,117.2266]
[1673603363245,10.0,17.008,16.995,117.2266]
[1673603363434,20.0,17.007,16.995,117.2266]
[1673603365349,17.0,17.006,16.99,11.89]
[1673603365536,20.0,17.007,16.99,11.89]
[1673603365745,17.0,17.006,16.99,11.89]
[1673603365981,15.85371,17.005,16.986,113.7304]
[1673603366176,17.0,17.004,16.987,20.0]
[1673603367639,22.85371,17.004,16.987,20.0]
[1673603368804,5.85371,17.004,16.988,17.0]
[1673603369015,20.0,17.007,16.99,11.79]
[1673603369230,20.0,17.009,16.99,11.79]
[1673603369756,20.0,17.009,16.991,17.0]
[1673603370380,17.0,17.008,16.99,11.79]
[1673603370590,10.0,17.006,16.99,11.79]
[1673603370799,17.0,17.005,16.99,11.79]
[1673603371341,15.85371,17.006,16.99,11.79]
[1673603371657,17.0,17.005,16.99,11.79]
[1673603371860,17.0,17.005,16.991,17.0]
[1673603374576,17.0,17.005,16.98,58.78]
[1673603374577,35.85371,17.004,16.98,58.78]
[1673603374914,11.73,17.0,16.981,111.5323]
[1673603375110,37.0,16.999,16.981,111.5323]
[1673603375443,42.85371,16.999,16.981,111.5323]
[1673603376992,42.85371,16.999,16.984,17.0]
[1673603377215,5.85371,16.998,16.984,17.0]
[1673603377412,37.0,16.997,16.981,111.5323]
[1673603377744,10.0,16.996,16.981,111.5323]
[1673603378368,17.0,16.995,16.981,111.5323]
[1673603379326,17.0,16.996,16.981,111.5323]
[1673603380585,17.0,16.996,16.974,118.4151]
[1673603380793,10.0,16.995,16.976,119.9759]
[1673603381003,17.0,16.994,16.977,20.0]
[1673603381409,15.85371,16.996,16.977,20.0]
[1673603381619,17.0,16.995,16.977,20.0]
[1673603382665,5.85371,16.996,16.98,11.69]
[1673603383614,5.85371,16.996,16.981,17.0]
[1673603383822,20.0,16.997,16.981,17.0]
[1673603384052,20.0,16.999,16.982,10.0]
[1673603384273,20.0,17.0,16.983,119.2141]
[1673603384482,20.0,17.0,16.984,17.0]
[1673603389621,123.1376,17.01,16.99,11.79]
[1673603389829,20.0,17.009,16.991,17.0]
[1673603390353,20.0,17.009,16.992,232.476]
[1673603391298,10.0,17.008,16.992,232.476]
[1673603391513,20.0,17.007,16.992,232.476]
[1673603391736,10.0,17.006,16.992,112.7692]
[1673603391953,17.0,17.005,16.992,112.7692]
[1673603393932,17.0,17.005,16.985,20.0]
[1673603394143,17.0,17.005,16.98,69.05]
[1673603394144,15.85371,17.004,16.986,119.2143]
[1673603394490,22.85371,17.003,16.987,20.0]
[1673603394788,5.85371,17.003,16.987,20.0]
[1673603397501,5.85371,17.003,16.99,11.79]
[1673603397708,20.0,17.007,16.99,11.79]
[1673603398032,123.1376,17.01,16.99,11.79]
[1673603398033,20.0,17.009,16.99,59.06]
[1673603398259,20.0,17.009,16.991,10.0]
[1673603398474,71.81620441,17.015,16.991,10.0]
[1673603398693,71.81620441,17.015,16.993,10.0]
[1673603399317,51.81620441,17.015,16.994,134.2189]
[1673603399519,51.81620441,17.015,17.0,11.79]
[1673603400691,51.81620441,17.015,16.995,10.0]
[1673603400911,51.81620441,17.015,16.994,124.2189]
[1673603401093,103.89718843,17.015,16.994,114.2189]
[1673603401304,10.0,17.014,16.994,114.2189]
[1673603401746,51.81620441,17.013,16.994,114.2189]
[1673603401948,20.0,17.012,16.994,114.2189]
[1673603402358,20.0,17.012,16.995,17.0]
[1673603402571,20.0,17.012,16.994,114.2189]
[1673603402572,17.0,17.011,16.994,114.2189]
[1673603402774,25.85371,17.01,16.994,114.2189]
[1673603402993,17.0,17.009,16.994,114.2189]
[1673603403322,20.0,17.008,16.994,114.2189]
[1673603406162,20.0,17.008,16.995,17.0]
[1673603406378,17.0,17.007,16.994,114.2189]
[1673603406682,5.85371,17.006,16.984,10.0]
[1673603406886,17.0,17.005,16.985,128.269]
[1673603407098,22.85371,17.005,16.985,128.269]
[1673603409412,5.85371,17.005,16.985,128.269]
[1673603409645,5.85371,17.005,16.986,10.0]
[1673603409863,5.85371,17.005,16.987,20.0]
[1673603410795,51.81620441,17.007,16.987,20.0]
[1673603411632,51.81620441,17.007,16.986,20.0]
[1673603412057,51.81620441,17.007,16.99,15.68]
[1673603412277,20.0,17.008,16.99,15.68]
[1673603412588,20.0,17.009,16.99,15.68]
[1673603412779,20.0,17.009,16.991,17.0]
[1673603413535,20.0,17.009,16.992,221.3206]
[1673603414454,71.76593774,17.009,16.992,221.3206]
[1673603414675,17.0,17.008,16.992,221.3206]
[1673603414881,20.0,17.007,16.992,221.3206]
[1673603415092,30.0,17.007,16.992,221.3206]
[1673603415302,20.0,17.007,16.992,221.3206]
[1673603415728,71.76593774,17.007,16.992,110.7022]
[1673603415937,71.76593774,17.007,16.98,78.75]
[1673603415938,22.85371,17.006,16.98,78.75]
[1673603416148,25.85371,17.005,16.984,108.9207]
[1673603416358,22.85371,17.004,16.984,108.9207]
[1673603416562,20.0,17.003,16.984,108.9207]
[1673603418025,22.85371,17.002,16.984,108.9207]
[1673603418669,134.6525,17.001,16.984,108.9207]
[1673603419534,134.6525,17.001,16.985,17.0]
[1673603419737,134.6525,17.001,16.986,10.0]
[1673603419948,134.6525,17.001,16.984,108.9207]
[1673603421427,134.6525,17.001,16.985,27.0]
[1673603422054,134.6525,17.001,16.985,17.0]
[1673603423627,134.6525,17.001,16.984,108.9207]
[1673603423839,38.57371,17.0,16.974,109.8505]
[1673603424154,10.0,16.998,16.975,115.0298]
[1673603424466,75.71858663,16.997,16.975,115.0298]
[1673603424661,25.85371,16.996,16.975,115.0298]
[1673603424872,10.0,16.994,16.975,115.0298]
[1673603425077,37.0,16.993,16.975,115.0298]
[1673603425724,110.2097,16.992,16.975,115.0298]
[1673603425934,20.0,16.991,16.975,115.0298]
[1673603426889,10.0,16.989,16.975,115.0298]
[1673603427092,25.85371,16.988,16.975,115.0298]
[1673603428275,77.61964774,16.988,16.965,111.7935]
[1673603428456,77.61964774,16.988,16.965,222.0239]
[1673603428457,22.85371,16.987,16.965,222.0239]
[1673603428774,22.85371,16.987,16.965,110.2304]
[1673603428775,15.72,16.98,16.965,110.2304]
[1673603429089,37.0,16.979,16.965,110.2304]
[1673603429703,42.85371,16.979,16.965,110.2304]
[1673603430555,5.85371,16.978,16.965,110.2304]
[1673603430772,17.0,16.977,16.965,110.2304]
[1673603430977,5.85371,16.978,16.96,15.68]
[1673603431196,37.0,16.977,16.953,110.741]
[1673603431511,5.85371,16.976,16.953,110.741]
[1673603431717,15.65,16.97,16.953,110.741]
[1673603431914,20.0,16.969,16.953,110.741]
[1673603433275,20.0,16.969,16.94,78.68]
[1673603433486,25.85371,16.969,16.95,110.741]
[1673603433915,25.85371,16.969,16.951,10.0]
[1673603434137,20.0,16.969,16.951,10.0]
[1673603435399,20.0,16.969,16.95,110.741]
[1673603437192,17.0,16.968,16.95,110.741]
[1673603437500,20.0,16.967,16.95,110.741]
[1673603439915,27.0,16.966,16.945,984.7]
[1673603440126,25.85371,16.965,16.945,396.6]
[1673603440337,15.65,16.96,16.945,396.6]
[1673603440559,20.0,16.959,16.945,396.6]
[1673603440765,17.0,16.958,16.941,116.3504]
[1673603441091,20.0,16.957,16.941,116.3504]
[1673603442248,5.85371,16.958,16.941,116.3504]
[1673603442437,17.0,16.957,16.941,116.3504]
[1673603442647,22.85371,16.957,16.941,116.3504]
[1673603444021,15.85371,16.956,16.941,116.3504]
[1673603444235,17.0,16.955,16.941,116.3504]
[1673603444448,15.85371,16.956,16.941,116.3504]
[1673603444660,10.0,16.956,16.941,116.3504]
[1673603445597,10.0,16.959,16.941,116.3504]
[1673603445812,10.0,16.957,16.937,396.6]
[1673603446131,5.85371,16.956,16.938,20.0]
[1673603446748,5.85371,16.956,16.938,30.0]
[1673603446975,5.85371,16.956,16.938,144.2643]
[1673603448543,10.0,16.959,16.938,144.2643]
[1673603448755,20.0,16.958,16.939,17.0]
[1673603448959,20.0,16.958,16.939,27.0]
[1673603449598,20.0,16.959,16.939,27.0]
[1673603449811,20.0,16.959,16.94,15.71]
[1673603450014,20.0,16.959,16.941,10.0]
[1673603450227,20.0,16.964,16.941,10.0]
[1673603450548,19.93753793,16.964,16.941,10.0]
[1673603452021,17.0,16.963,16.94,15.71]
[1673603452233,25.85371,16.962,16.94,15.71]
[1673603452418,17.0,16.961,16.94,15.71]
[1673603452628,20.0,16.96,16.94,15.71]
[1673603453050,17.0,16.959,16.94,15.71]
[1673603453255,20.0,16.958,16.94,15.71]
[1673603453486,22.85371,16.957,16.938,20.0]
[1673603453695,22.85371,16.957,16.93,15.85]
[1673603453696,15.85371,16.956,16.93,15.85]
[1673603453909,15.72,16.95,16.93,15.85]
[1673603454119,20.0,16.949,16.93,15.85]
[1673603454436,22.85371,16.955,16.93,78.73]
[1673603454437,5.85371,16.955,16.93,78.73]
[1673603454631,10.0,16.953,16.93,78.66]
[1673603454837,25.85371,16.952,16.93,15.8]
[1673603455048,5.85371,16.951,16.93,15.8]
[1673603455379,78.6,16.94,16.908,116.6665]
[1673603455591,25.85371,16.939,16.909,10.0]
[1673603456122,25.85371,16.939,16.91,23.79321973]
[1673603456323,25.85371,16.939,16.92,15.71]
[1673603456539,17.0,16.938,16.911,113.4611]
[1673603456749,20.0,16.937,16.912,10.0]
[1673603457057,25.85371,16.939,16.912,10.0]
[1673603457273,25.85371,16.939,16.91,78.73]
[1673603457468,174.79336351,16.938,16.91,15.85]
[1673603457678,10.0,16.936,16.91,15.85]
[1673603457885,25.85371,16.935,16.91,15.85]
[1673603458114,5.85371,16.934,16.91,15.85]
[1673603458522,20.0,16.933,16.91,15.85]
[1673603458846,22.85371,16.932,16.91,15.85]
[1673603459045,25.85371,16.931,16.91,15.85]
[1673603459244,17.0,16.93,16.91,15.85]
[1673603459455,20.0,16.929,16.91,15.85]
[1673603460216,5.85371,16.93,16.92,15.72]
[1673603460743,10.0,16.943,16.921,43.79321973]
[1673603460955,10.0,16.943,16.921,143.11831973]
[1673603461156,309.77678496,16.946,16.922,10.0]
[1673603461363,299.77678496,16.946,16.923,37.0]
[1673603461691,15.68,16.95,16.923,60.79321973]
[1673603461879,15.68,16.95,16.924,23.79321973]
[1673603462093,15.68,16.95,16.925,20.0]
[1673603462304,15.68,16.95,16.926,17.0]
[1673603462513,15.68,16.95,16.927,20.0]
[1673603463060,15.68,16.95,16.928,17.0]
[1673603463453,78.56,16.95,16.921,119.3251]
[1673603463680,10.0,16.946,16.921,119.3251]
[1673603463878,17.0,16.945,16.921,143.11831973]
[1673603464087,15.72,16.94,16.921,119.3251]
[1673603464307,20.0,16.939,16.921,119.3251]
[1673603464937,17.0,16.938,16.921,119.3251]
[1673603465358,20.0,16.939,16.921,119.3251]
[1673603465572,20.0,16.939,16.922,23.79321973]
[1673603465988,20.0,16.943,16.922,23.79321973]
[1673603466725,111.6708,16.947,16.923,10.0]
[1673603466927,111.6708,16.947,16.924,20.0]
[1673603467142,111.6708,16.947,16.924,43.79321973]
[1673603467356,111.6708,16.947,16.925,23.79321973]
[1673603467677,30.0,16.946,16.925,23.79321973]
[1673603467878,30.0,16.946,16.921,119.3251]
[1673603468091,30.0,16.946,16.921,143.11831973]
[1673603468625,15.72,16.94,16.92,15.8]
[1673603468811,17.0,16.939,16.913,111.3919]
[1673603469027,10.0,16.938,16.913,111.3919]
[1673603469237,17.0,16.937,16.913,111.3919]
[1673603469451,10.0,16.936,16.913,111.3919]
[1673603469675,17.0,16.935,16.913,111.3919]
[1673603469887,10.0,16.936,16.913,111.3919]
[1673603470090,10.0,16.936,16.914,20.0]
[1673603470723,17.0,16.935,16.914,20.0]
[1673603471995,10.0,16.936,16.914,20.0]
[1673603472725,17.0,16.935,16.914,20.0]
[1673603473040,15.72,16.93,16.913,111.3919]
[1673603473225,37.0,16.929,16.9,78.77]
[1673603473442,10.0,16.928,16.903,111.0466]
[1673603473754,17.0,16.927,16.903,111.0466]
[1673603474400,10.0,16.926,16.903,111.0466]
[1673603474607,17.0,16.925,16.903,111.0466]
[1673603475324,17.0,16.924,16.903,111.0466]
[1673603475549,10.0,16.926,16.903,111.0466]
[1673603475550,15.65,16.92,16.903,111.0466]
[1673603475960,20.0,16.919,16.903,111.0466]
[1673603476378,10.0,16.927,16.903,111.0466]
[1673603476590,10.0,16.928,16.903,111.0466]
[1673603476827,10.0,16.928,16.903,134.83981973]
[1673603477029,10.0,16.928,16.903,111.0466]
[1673603477452,10.0,16.928,16.904,37.0]
[1673603477657,23.73,16.93,16.904,37.0]
[1673603477876,113.5709,16.929,16.91,23.83]
[1673603478189,113.5709,16.929,16.911,113.784]
[1673603480401,10.0,16.928,16.911,113.784]
[1673603481236,17.0,16.927,16.911,113.784]
[1673603481645,10.0,16.928,16.911,113.784]
[1673603482180,113.5709,16.929,16.911,113.784]
[1673603482904,113.5709,16.929,16.912,17.0]
[1673603483110,17.0,16.928,16.912,17.0]
[1673603483327,10.0,16.927,16.911,113.784]
[1673603485133,27.0,16.928,16.911,113.784]
[1673603485340,10.0,16.927,16.904,20.0]
[1673603485547,10.0,16.925,16.905,108.9234]
[1673603485762,10.0,16.927,16.906,20.0]
[1673603486176,123.5709,16.929,16.906,20.0]
[1673603486404,113.5709,16.929,16.91,23.83]
[1673603486822,113.5709,16.929,16.911,17.0]
[1673603487031,20.0,16.928,16.905,108.9234]
[1673603487233,10.0,16.927,16.905,108.9234]
[1673603487770,37.0,16.926,16.905,108.9234]
[1673603488320,23.83,16.92,16.9,24.04]
[1673603488499,140.6887,16.92,16.9,24.04]
[1673603488699,27.0,16.919,16.9,24.04]
[1673603489032,140.6887,16.92,16.9,24.04]
[1673603489448,20.0,16.919,16.9,24.04]
[1673603489872,140.6887,16.92,16.9,24.04]
[1673603489873,23.83,16.92,16.9,24.04]
[1673603491109,137.6151,16.92,16.9,24.04]
[1673603491536,20.0,16.919,16.9,24.04]
[1673603491961,20.0,16.919,16.901,17.0]
[1673603492399,20.0,16.919,16.902,112.3073]
[1673603493006,20.0,16.919,16.903,17.0]
[1673603494190,20.0,16.919,16.903,27.0]
[1673603494501,23.66,16.93,16.91,23.83]
[1673603494908,113.5709,16.929,16.91,23.83]
[1673603495335,10.0,16.928,16.91,23.83]
[1673603495973,62.73686174,16.928,16.902,230.9478]
[1673603496167,10.0,16.926,16.902,230.9478]
[1673603496379,37.0,16.925,16.902,230.9478]
[1673603496902,62.73686174,16.928,16.903,10.0]
[1673603496903,52.73686174,16.928,16.903,10.0]
[1673603497112,113.5709,16.929,16.91,23.83]
[1673603497328,17.0,16.928,16.91,23.83]
[1673603497753,17.0,16.928,16.904,10.0]
[1673603497982,10.0,16.927,16.904,10.0]
[1673603498193,17.0,16.926,16.905,37.0]
[1673603501858,10.0,16.928,16.905,37.0]
[1673603502281,10.0,16.928,16.905,20.0]
[1673603502498,10.0,16.928,16.904,20.0]
[1673603503022,10.0,16.928,16.902,112.3073]
[1673603503223,23.59,16.92,16.902,112.3073]
[1673603503439,17.0,16.919,16.902,112.3073]
[1673603504261,114.8095,16.92,16.902,112.3073]
[1673603504475,20.0,16.919,16.902,112.3073]
[1673603505446,20.0,16.919,16.903,17.0]
[1673603509446,20.0,16.919,16.903,27.0]
[1673603510488,113.5709,16.929,16.91,23.83]
[1673603511332,113.5709,16.929,16.911,17.0]